[Event "Titled Tuesday Blitz August 08 Early 2023"]
[White "Molina Carretero, Daniel"]
[Black "Ovchinnikov, Vsevolod"]
[WhiteFideId "32071914"]
[BlackFideId "24176842"]
[WhiteElo "2409"]
[BlackElo "2635"]
[Result "1-0"]
[Round "4"]
[TimeControl "180+1"]
[Date "2023.08.08"]
[WhiteClock "0:00:33"]
[BlackClock "0:00:15"]
[Board "158"]

1. c4 {[%clk 0:03:00]}  Nf6 {[%clk 0:02:58]} 2. g3 {[%clk 0:03:00]}  d5 {[%clk 0:02:57]} 3. cxd5 {[%clk 0:03:00]}  Nxd5 {[%clk 0:02:57]} 4. Bg2 {[%clk 0:03:00]}  g6 {[%clk 0:02:58]} 5. Nc3 {[%clk 0:03:00]}  Nb6 {[%clk 0:02:58]} 6. Nf3 {[%clk 0:03:00]}  Bg7 {[%clk 0:02:57]} 7. O-O {[%clk 0:03:00]}  Nc6 {[%clk 0:02:58]} 8. b3 {[%clk 0:02:59]}  O-O {[%clk 0:02:58]} 9. Bb2 {[%clk 0:03:00]}  Bg4 {[%clk 0:02:55]} 10. d3 {[%clk 0:02:58]}  Re8 {[%clk 0:02:54]} 11. Rc1 {[%clk 0:02:56]}  Rb8 {[%clk 0:02:46]} 12. h3 {[%clk 0:02:55]}  Bf5 {[%clk 0:02:43]} 13. Nd2 {[%clk 0:02:51]}  Bd7 {[%clk 0:02:16]} 14. Kh2 {[%clk 0:02:51]}  Nd4 {[%clk 0:02:11]} 15. e3 {[%clk 0:02:50]}  Ne6 {[%clk 0:02:01]} 16. Qe2 {[%clk 0:02:43]}  c5 {[%clk 0:01:49]} 17. Rfd1 {[%clk 0:02:42]}  Nc8 {[%clk 0:01:38]} 18. Na4 {[%clk 0:02:25]}  Bxa4 {[%clk 0:01:34]} 19. Bxg7 {[%clk 0:02:25]}  Kxg7 {[%clk 0:01:28]} 20. bxa4 {[%clk 0:02:24]}  Nd6 {[%clk 0:01:28]} 21. Nb3 {[%clk 0:02:22]}  b6 {[%clk 0:01:28]} 22. a5 {[%clk 0:02:20]}  Qd7 {[%clk 0:01:24]} 23. Qb2+ {[%clk 0:02:19]}  Kg8 {[%clk 0:01:24]} 24. axb6 {[%clk 0:02:17]}  axb6 {[%clk 0:01:24]} 25. h4 {[%clk 0:02:14]}  h5 {[%clk 0:01:24]} 26. Qe5 {[%clk 0:02:08]}  f6 {[%clk 0:00:54]} 27. Qd5 {[%clk 0:02:03]}  Kh7 {[%clk 0:00:54]} 28. Be4 {[%clk 0:02:00]}  f5 {[%clk 0:00:40]} 29. Bg2 {[%clk 0:01:57]}  Red8 {[%clk 0:00:41]} 30. a4 {[%clk 0:01:38]}  Nc7 {[%clk 0:00:39]} 31. Qe5 {[%clk 0:01:26]}  Nf7 {[%clk 0:00:38]} 32. Qa1 {[%clk 0:01:23]}  Ne6 {[%clk 0:00:30]} 33. a5 {[%clk 0:01:22]}  Rdc8 {[%clk 0:00:23]} 34. axb6 {[%clk 0:01:21]}  Rxb6 {[%clk 0:00:24]} 35. Nd2 {[%clk 0:01:18]}  Rd6 {[%clk 0:00:14]} 36. Bf1 {[%clk 0:01:10]}  Nh6 {[%clk 0:00:13]} 37. Nc4 {[%clk 0:01:09]}  Ng4+ {[%clk 0:00:13]} 38. Kg1 {[%clk 0:01:09]}  Rd5 {[%clk 0:00:11]} 39. Qc3 {[%clk 0:01:05]}  Qd8 {[%clk 0:00:11]} 40. Bg2 {[%clk 0:01:05]}  Rd7 {[%clk 0:00:10]} 41. Bf3 {[%clk 0:00:56]}  Nf6 {[%clk 0:00:10]} 42. Ne5 {[%clk 0:00:53]}  Rdc7 {[%clk 0:00:11]} 43. Qc4 {[%clk 0:00:50]}  Qd6 {[%clk 0:00:09]} 44. Nf7 {[%clk 0:00:50]}  Qd7 {[%clk 0:00:08]} 45. Qxe6 {[%clk 0:00:50]}  Qxe6 {[%clk 0:00:09]} 46. Ng5+ {[%clk 0:00:50]}  Kh6 {[%clk 0:00:09]} 47. Nxe6 {[%clk 0:00:51]}  Rd7 {[%clk 0:00:10]} 48. Nxc5 {[%clk 0:00:49]}  Rdc7 {[%clk 0:00:10]} 49. d4 {[%clk 0:00:47]}  Ne8 {[%clk 0:00:10]} 50. Nd3 {[%clk 0:00:47]}  Nd6 {[%clk 0:00:10]} 51. Rxc7 {[%clk 0:00:46]}  Rxc7 {[%clk 0:00:11]} 52. Rc1 {[%clk 0:00:46]}  Ra7 {[%clk 0:00:11]} 53. Kg2 {[%clk 0:00:46]}  Ra3 {[%clk 0:00:11]} 54. Ne5 {[%clk 0:00:45]}  Ra7 {[%clk 0:00:12]} 55. Rc6 {[%clk 0:00:45]}  Kg7 {[%clk 0:00:12]} 56. Rc5 {[%clk 0:00:43]}  Kh6 {[%clk 0:00:11]} 57. Nc6 {[%clk 0:00:43]}  Rc7 {[%clk 0:00:11]} 58. Re5 {[%clk 0:00:43]}  Nc8 {[%clk 0:00:12]} 59. Re6 {[%clk 0:00:40]}  Kg7 {[%clk 0:00:12]} 60. d5 {[%clk 0:00:38]}  Nd6 {[%clk 0:00:11]} 61. Rxe7+ {[%clk 0:00:38]}  Rxe7 {[%clk 0:00:11]} 62. Nxe7 {[%clk 0:00:39]}  Kf6 {[%clk 0:00:12]} 63. Nc6 {[%clk 0:00:39]}  Nc4 {[%clk 0:00:12]} 64. Kf1 {[%clk 0:00:38]}  Nd6 {[%clk 0:00:13]} 65. Ke2 {[%clk 0:00:38]}  Nc4 {[%clk 0:00:14]} 66. Kd3 {[%clk 0:00:37]}  Nd6 {[%clk 0:00:14]} 67. Be2 {[%clk 0:00:37]}  Nf7 {[%clk 0:00:14]} 68. f4 {[%clk 0:00:36]}  Nd6 {[%clk 0:00:15]} 69. Bf3 {[%clk 0:00:36]}  Kf7 {[%clk 0:00:15]} 70. e4 {[%clk 0:00:35]}  fxe4+ {[%clk 0:00:16]} 71. Bxe4 {[%clk 0:00:36]}  Kf6 {[%clk 0:00:15]} 72. Ne5 {[%clk 0:00:33]} 1-0


[Site "https://www.chess.com"]

[Event "Titled Tuesday Blitz August 08 Early 2023"]
[White "Herman, Daniel"]
[Black "Komov, Roman"]
[WhiteFideId "30935008"]
[BlackFideId "24175714"]
[WhiteElo "2399"]
[BlackElo "2607"]
[Result "0-1"]
[Round "4"]
[TimeControl "180+1"]
[Date "2023.08.08"]
[WhiteClock "0:00:08"]
[BlackClock "0:00:35"]
[Board "161"]

1. d4 {[%clk 0:03:00]}  Nf6 {[%clk 0:02:59]} 2. c4 {[%clk 0:03:00]}  e6 {[%clk 0:02:58]} 3. Nc3 {[%clk 0:03:00]}  Bb4 {[%clk 0:02:58]} 4. e3 {[%clk 0:03:00]}  O-O {[%clk 0:02:57]} 5. Ne2 {[%clk 0:03:00]}  Re8 {[%clk 0:02:55]} 6. a3 {[%clk 0:02:59]}  Bf8 {[%clk 0:02:55]} 7. Nf4 {[%clk 0:02:56]}  d6 {[%clk 0:02:52]} 8. Bd3 {[%clk 0:02:53]}  e5 {[%clk 0:02:51]} 9. dxe5 {[%clk 0:02:52]}  dxe5 {[%clk 0:02:51]} 10. Nfd5 {[%clk 0:02:48]}  Nfd7 {[%clk 0:02:47]} 11. O-O {[%clk 0:02:24]}  a5 {[%clk 0:02:35]} 12. e4 {[%clk 0:02:05]}  c6 {[%clk 0:02:31]} 13. Ne3 {[%clk 0:02:05]}  Nc5 {[%clk 0:02:31]} 14. Bc2 {[%clk 0:02:03]}  Nba6 {[%clk 0:02:29]} 15. Qf3 {[%clk 0:01:55]}  Ne6 {[%clk 0:02:17]} 16. Nf5 {[%clk 0:01:54]}  Nd4 {[%clk 0:02:02]} 17. Nxd4 {[%clk 0:01:53]}  exd4 {[%clk 0:02:03]} 18. Rd1 {[%clk 0:01:43]}  Nc5 {[%clk 0:01:50]} 19. Bf4 {[%clk 0:01:21]}  Ne6 {[%clk 0:01:37]} 20. Bg3 {[%clk 0:01:13]}  Qb6 {[%clk 0:01:14]} 21. Na4 {[%clk 0:01:11]}  Qa7 {[%clk 0:01:14]} 22. b4 {[%clk 0:01:07]}  axb4 {[%clk 0:01:10]} 23. axb4 {[%clk 0:01:07]}  b5 {[%clk 0:01:11]} 24. Nb6 {[%clk 0:01:04]}  Qxa1 {[%clk 0:01:11]} 25. Rxa1 {[%clk 0:00:58]}  Rxa1+ {[%clk 0:01:12]} 26. Bd1 {[%clk 0:00:58]}  Ng5 {[%clk 0:01:01]} 27. Qd3 {[%clk 0:00:50]}  Nxe4 {[%clk 0:00:36]} 28. Qxd4 {[%clk 0:00:08]}  Nc3 {[%clk 0:00:35]} 0-1


[Site "https://www.chess.com"]

[Event "Titled Tuesday Blitz August 08 Early 2023"]
[White "Llanos, Guillermo"]
[Black "Bagrationi, Alexander"]
[WhiteFideId "100358"]
[BlackFideId "14104954"]
[WhiteElo "2396"]
[BlackElo "2594"]
[Result "1-0"]
[Round "4"]
[TimeControl "180+1"]
[Date "2023.08.08"]
[WhiteClock "0:00:33"]
[BlackClock "0:01:03"]
[Board "162"]

1. b3 {[%clk 0:02:28]}  e5 {[%clk 0:02:55]} 2. Bb2 {[%clk 0:02:27]}  d6 {[%clk 0:02:56]} 3. Nf3 {[%clk 0:02:25]}  f5 {[%clk 0:02:55]} 4. d3 {[%clk 0:02:25]}  Nf6 {[%clk 0:02:56]} 5. g3 {[%clk 0:02:23]}  c6 {[%clk 0:02:55]} 6. Bg2 {[%clk 0:02:23]}  g6 {[%clk 0:02:56]} 7. O-O {[%clk 0:02:23]}  Bg7 {[%clk 0:02:56]} 8. c4 {[%clk 0:02:23]}  O-O {[%clk 0:02:57]} 9. Nc3 {[%clk 0:02:22]}  h6 {[%clk 0:02:57]} 10. Rc1 {[%clk 0:02:16]}  Kh7 {[%clk 0:02:57]} 11. e4 {[%clk 0:02:13]}  f4 {[%clk 0:02:56]} 12. c5 {[%clk 0:02:06]}  g5 {[%clk 0:02:52]} 13. cxd6 {[%clk 0:02:05]}  Qxd6 {[%clk 0:02:52]} 14. Nb1 {[%clk 0:02:02]}  Nbd7 {[%clk 0:02:50]} 15. d4 {[%clk 0:01:48]}  Nxe4 {[%clk 0:02:44]} 16. Nxe5 {[%clk 0:01:43]}  Ndf6 {[%clk 0:02:33]} 17. Ba3 {[%clk 0:01:39]}  Qd8 {[%clk 0:02:23]} 18. Bxf8 {[%clk 0:01:38]}  Qxf8 {[%clk 0:02:23]} 19. g4 {[%clk 0:01:31]}  Nd6 {[%clk 0:02:15]} 20. f3 {[%clk 0:01:24]}  Nd5 {[%clk 0:02:14]} 21. Re1 {[%clk 0:01:21]}  h5 {[%clk 0:02:07]} 22. Qd3+ {[%clk 0:01:19]}  Kg8 {[%clk 0:02:06]} 23. Qg6 {[%clk 0:01:14]}  Qf6 {[%clk 0:02:05]} 24. gxh5 {[%clk 0:01:09]}  Bf5 {[%clk 0:02:03]} 25. Qxf6 {[%clk 0:01:08]}  Bxf6 {[%clk 0:02:03]} 26. Nc3 {[%clk 0:01:06]}  Ne3 {[%clk 0:02:00]} 27. Rxe3 {[%clk 0:00:57]}  fxe3 {[%clk 0:02:00]} 28. Re1 {[%clk 0:00:57]}  c5 {[%clk 0:01:54]} 29. Nd5 {[%clk 0:00:57]}  Bh8 {[%clk 0:01:41]} 30. Ne7+ {[%clk 0:00:48]}  Kh7 {[%clk 0:01:36]} 31. dxc5 {[%clk 0:00:47]}  Bxe5 {[%clk 0:01:31]} 32. cxd6 {[%clk 0:00:47]}  Bd7 {[%clk 0:01:24]} 33. Nd5 {[%clk 0:00:42]}  Re8 {[%clk 0:01:14]} 34. Rxe3 {[%clk 0:00:39]}  Bd4 {[%clk 0:01:13]} 35. Kf2 {[%clk 0:00:34]}  Bxe3+ {[%clk 0:01:06]} 36. Nxe3 {[%clk 0:00:34]}  Re6 {[%clk 0:01:06]} 37. Nc4 {[%clk 0:00:34]}  Rxd6 {[%clk 0:01:03]} 38. Nxd6 {[%clk 0:00:33]} 1-0


[Site "https://www.chess.com"]

[Event "Titled Tuesday Blitz August 08 Early 2023"]
[White "Aevengho"]
[Black "Ventura Bolet, Maxim"]
[BlackFideId "22238824"]
[WhiteElo "2568"]
[BlackElo "2388"]
[Result "1-0"]
[Round "4"]
[TimeControl "180+1"]
[Date "2023.08.08"]
[WhiteClock "0:00:49"]
[BlackClock "0:00:02"]
[Board "164"]

1. e4 {[%clk 0:03:00]}  Nf6 {[%clk 0:02:59]} 2. e5 {[%clk 0:03:00]}  Nd5 {[%clk 0:02:58]} 3. d4 {[%clk 0:03:01]}  d6 {[%clk 0:02:58]} 4. Bc4 {[%clk 0:03:01]}  Nb6 {[%clk 0:02:53]} 5. Bb3 {[%clk 0:03:01]}  dxe5 {[%clk 0:02:27]} 6. Qf3 {[%clk 0:03:01]}  e6 {[%clk 0:02:21]} 7. dxe5 {[%clk 0:03:01]}  Bd7 {[%clk 0:02:16]} 8. Qg3 {[%clk 0:02:59]}  Bc6 {[%clk 0:02:15]} 9. Nf3 {[%clk 0:02:57]}  N8d7 {[%clk 0:02:12]} 10. O-O {[%clk 0:02:55]}  h6 {[%clk 0:02:07]} 11. Nc3 {[%clk 0:02:52]}  Qe7 {[%clk 0:01:59]} 12. Nd4 {[%clk 0:02:50]}  Qc5 {[%clk 0:01:50]} 13. Nxc6 {[%clk 0:02:47]}  Qxc6 {[%clk 0:01:50]} 14. a4 {[%clk 0:02:44]}  a6 {[%clk 0:01:40]} 15. a5 {[%clk 0:02:35]}  Nc4 {[%clk 0:01:40]} 16. Qf4 {[%clk 0:02:15]}  Ncxe5 {[%clk 0:01:35]} 17. Ba4 {[%clk 0:02:15]}  Qd6 {[%clk 0:01:04]} 18. Rd1 {[%clk 0:02:14]}  g5 {[%clk 0:00:40]} 19. Qg3 {[%clk 0:02:06]}  Qxd1+ {[%clk 0:00:35]} 20. Nxd1 {[%clk 0:02:06]}  O-O-O {[%clk 0:00:36]} 21. Nc3 {[%clk 0:01:57]}  f5 {[%clk 0:00:32]} 22. Bxd7+ {[%clk 0:01:54]}  Nxd7 {[%clk 0:00:32]} 23. Qe3 {[%clk 0:01:54]}  Nc5 {[%clk 0:00:25]} 24. b4 {[%clk 0:01:49]}  Ne4 {[%clk 0:00:25]} 25. Bb2 {[%clk 0:01:44]}  Bg7 {[%clk 0:00:14]} 26. h3 {[%clk 0:01:28]}  Rhe8 {[%clk 0:00:14]} 27. Nxe4 {[%clk 0:01:25]}  Bxb2 {[%clk 0:00:13]} 28. Rb1 {[%clk 0:01:26]}  Bd4 {[%clk 0:00:13]} 29. Qe2 {[%clk 0:01:23]}  fxe4 {[%clk 0:00:13]} 30. Qxe4 {[%clk 0:01:24]}  e5 {[%clk 0:00:13]} 31. Rb3 {[%clk 0:01:20]}  Rf8 {[%clk 0:00:13]} 32. Rf3 {[%clk 0:01:20]}  Rxf3 {[%clk 0:00:11]} 33. Qxf3 {[%clk 0:01:21]}  Rd6 {[%clk 0:00:11]} 34. c3 {[%clk 0:01:21]}  Ba7 {[%clk 0:00:11]} 35. Qf5+ {[%clk 0:01:17]}  Kd8 {[%clk 0:00:09]} 36. Qxe5 {[%clk 0:01:17]}  Rd1+ {[%clk 0:00:07]} 37. Kh2 {[%clk 0:01:17]}  Rd6 {[%clk 0:00:03]} 38. f3 {[%clk 0:01:08]}  Kd7 {[%clk 0:00:01]} 39. Qg7+ {[%clk 0:01:04]}  Kc6 {[%clk 0:00:02]} 40. c4 {[%clk 0:01:04]}  Bd4 {[%clk 0:00:02]} 41. Qe7 {[%clk 0:00:58]}  h5 {[%clk 0:00:02]} 42. Qxg5 {[%clk 0:00:51]}  h4 {[%clk 0:00:02]} 43. b5+ {[%clk 0:00:48]}  axb5 {[%clk 0:00:02]} 44. Qxb5# {[%clk 0:00:49]} 1-0


[Site "https://www.chess.com"]

[Event "Titled Tuesday Blitz August 08 Early 2023"]
[White "Do Nascimento,Christian Almeida"]
[Black "Luong Phuong Hanh"]
[WhiteFideId "2143801"]
[BlackFideId "12401013"]
[WhiteElo "2556"]
[BlackElo "2387"]
[Result "1-0"]
[Round "4"]
[TimeControl "180+1"]
[Date "2023.08.08"]
[WhiteClock "0:01:03"]
[BlackClock "0:01:30"]
[Board "165"]

1. e4 {[%clk 0:02:58]}  c5 {[%clk 0:02:57]} 2. Nf3 {[%clk 0:02:56]}  e6 {[%clk 0:02:57]} 3. c4 {[%clk 0:02:55]}  Nc6 {[%clk 0:02:51]} 4. Nc3 {[%clk 0:02:54]}  e5 {[%clk 0:02:33]} 5. Be2 {[%clk 0:02:42]}  Nf6 {[%clk 0:02:32]} 6. d3 {[%clk 0:02:42]}  d6 {[%clk 0:02:33]} 7. O-O {[%clk 0:02:41]}  Be7 {[%clk 0:02:32]} 8. Bg5 {[%clk 0:02:41]}  O-O {[%clk 0:02:27]} 9. a3 {[%clk 0:02:40]}  Nd4 {[%clk 0:02:26]} 10. Nxd4 {[%clk 0:02:37]}  cxd4 {[%clk 0:02:26]} 11. Bxf6 {[%clk 0:02:37]}  Bxf6 {[%clk 0:02:26]} 12. Nd5 {[%clk 0:02:37]}  Be6 {[%clk 0:02:23]} 13. f4 {[%clk 0:02:25]}  Rc8 {[%clk 0:02:19]} 14. f5 {[%clk 0:02:24]}  Bxd5 {[%clk 0:02:18]} 15. cxd5 {[%clk 0:02:24]}  Qb6 {[%clk 0:02:18]} 16. b4 {[%clk 0:02:21]}  Rc3 {[%clk 0:02:16]} 17. Qa4 {[%clk 0:02:18]}  Rfc8 {[%clk 0:02:16]} 18. Rab1 {[%clk 0:02:09]}  h6 {[%clk 0:02:11]} 19. Bh5 {[%clk 0:01:58]}  Bg5 {[%clk 0:02:10]} 20. Qd7 {[%clk 0:01:57]}  Rf8 {[%clk 0:02:06]} 21. f6 {[%clk 0:01:53]}  Rc7 {[%clk 0:01:56]} 22. Qg4 {[%clk 0:01:43]}  g6 {[%clk 0:01:51]} 23. h4 {[%clk 0:01:43]}  Be3+ {[%clk 0:01:50]} 24. Kh1 {[%clk 0:01:42]}  Kh7 {[%clk 0:01:50]} 25. Rf3 {[%clk 0:01:36]}  Rg8 {[%clk 0:01:45]} 26. Rbf1 {[%clk 0:01:21]}  gxh5 {[%clk 0:01:42]} 27. Qxh5 {[%clk 0:01:20]}  Rg6 {[%clk 0:01:39]} 28. Qf5 {[%clk 0:01:19]}  Qb5 {[%clk 0:01:36]} 29. h5 {[%clk 0:01:16]}  Qxd3 {[%clk 0:01:35]} 30. hxg6+ {[%clk 0:01:16]}  fxg6 {[%clk 0:01:35]} 31. Qg4 {[%clk 0:01:05]}  Rf7 {[%clk 0:01:34]} 32. Qe6 {[%clk 0:01:05]}  Kg8 {[%clk 0:01:31]} 33. Qe8+ {[%clk 0:01:03]}  Rf8 {[%clk 0:01:30]} 34. Qxg6+ {[%clk 0:01:03]}  Kh8 {[%clk 0:01:30]} 35. Qg7# {[%clk 0:01:03]} 1-0


[Site "https://www.chess.com"]

[Event "Titled Tuesday Blitz August 08 Early 2023"]
[White "Parpiev, Isaak"]
[Black "Nosacheva, Mariya"]
[WhiteFideId "34281576"]
[BlackFideId "34111422"]
[WhiteElo "2545"]
[BlackElo "2382"]
[Result "0-1"]
[Round "4"]
[TimeControl "180+1"]
[Date "2023.08.08"]
[WhiteClock "0:00:25"]
[BlackClock "0:01:17"]
[Board "166"]

1. d4 {[%clk 0:03:00]}  Nf6 {[%clk 0:02:59]} 2. c4 {[%clk 0:03:01]}  g6 {[%clk 0:02:59]} 3. Nc3 {[%clk 0:03:01]}  Bg7 {[%clk 0:03:00]} 4. d5 {[%clk 0:03:02]}  d6 {[%clk 0:03:01]} 5. e4 {[%clk 0:03:02]}  O-O {[%clk 0:03:01]} 6. Be2 {[%clk 0:03:01]}  c6 {[%clk 0:02:57]} 7. Nf3 {[%clk 0:02:56]}  Na6 {[%clk 0:02:52]} 8. O-O {[%clk 0:02:55]}  e5 {[%clk 0:02:45]} 9. Nd2 {[%clk 0:02:32]}  Ne8 {[%clk 0:02:31]} 10. Rb1 {[%clk 0:02:27]}  c5 {[%clk 0:02:30]} 11. a3 {[%clk 0:02:23]}  f5 {[%clk 0:02:29]} 12. b4 {[%clk 0:02:21]}  b6 {[%clk 0:02:28]} 13. Re1 {[%clk 0:01:51]}  Bh6 {[%clk 0:02:04]} 14. Bb2 {[%clk 0:01:37]}  Bxd2 {[%clk 0:01:50]} 15. Qxd2 {[%clk 0:01:35]}  f4 {[%clk 0:01:51]} 16. Nd1 {[%clk 0:01:29]}  g5 {[%clk 0:01:49]} 17. f3 {[%clk 0:01:27]}  h5 {[%clk 0:01:47]} 18. Nf2 {[%clk 0:01:25]}  Rf7 {[%clk 0:01:35]} 19. Bc3 {[%clk 0:01:18]}  Rg7 {[%clk 0:01:31]} 20. Rec1 {[%clk 0:01:12]}  g4 {[%clk 0:01:26]} 21. Kf1 {[%clk 0:01:11]}  Qh4 {[%clk 0:01:25]} 22. Ke1 {[%clk 0:00:36]}  Qxh2 {[%clk 0:01:21]} 23. Kd1 {[%clk 0:00:30]}  Qxg2 {[%clk 0:01:20]} 24. fxg4 {[%clk 0:00:25]}  Qxf2 {[%clk 0:01:17]} 0-1


[Site "https://www.chess.com"]

[Event "Titled Tuesday Blitz August 08 Early 2023"]
[White "Gueci, Tea"]
[Black "Unat, Can Haktan"]
[WhiteFideId "872342"]
[BlackFideId "6398073"]
[WhiteElo "2377"]
[BlackElo "2542"]
[Result "0-1"]
[Round "4"]
[TimeControl "180+1"]
[Date "2023.08.08"]
[WhiteClock "0:01:02"]
[BlackClock "0:02:44"]
[Board "169"]

1. Nf3 {[%clk 0:02:57]}  Nf6 {[%clk 0:03:00]} 2. g3 {[%clk 0:02:57]}  c5 {[%clk 0:03:01]} 3. Bg2 {[%clk 0:02:57]}  g6 {[%clk 0:03:02]} 4. O-O {[%clk 0:02:57]}  Bg7 {[%clk 0:03:02]} 5. d3 {[%clk 0:02:58]}  O-O {[%clk 0:03:03]} 6. Nbd2 {[%clk 0:02:58]}  d5 {[%clk 0:03:04]} 7. e4 {[%clk 0:02:57]}  Nc6 {[%clk 0:03:05]} 8. Re1 {[%clk 0:02:57]}  Bg4 {[%clk 0:03:05]} 9. h3 {[%clk 0:02:45]}  dxe4 {[%clk 0:03:04]} 10. dxe4 {[%clk 0:02:38]}  Bxf3 {[%clk 0:03:04]} 11. Bxf3 {[%clk 0:02:37]}  Qd7 {[%clk 0:02:58]} 12. Bg2 {[%clk 0:02:34]}  Rfd8 {[%clk 0:02:59]} 13. c3 {[%clk 0:02:33]}  Ne5 {[%clk 0:02:58]} 14. Qb3 {[%clk 0:02:20]}  Nd3 {[%clk 0:02:52]} 15. e5 {[%clk 0:02:05]}  Nxe1 {[%clk 0:02:49]} 16. exf6 {[%clk 0:02:05]}  Bxf6 {[%clk 0:02:43]} 17. Qxb7 {[%clk 0:01:48]}  Qxb7 {[%clk 0:02:42]} 18. Bxb7 {[%clk 0:01:49]}  Rab8 {[%clk 0:02:43]} 19. Bh1 {[%clk 0:01:42]}  Nc2 {[%clk 0:02:41]} 20. Rb1 {[%clk 0:01:40]}  Bxc3 {[%clk 0:02:41]} 21. bxc3 {[%clk 0:01:05]}  Rxb1 {[%clk 0:02:42]} 22. Nxb1 {[%clk 0:01:06]}  Rd1+ {[%clk 0:02:43]} 23. Kh2 {[%clk 0:01:06]}  Rxc1 {[%clk 0:02:44]} 24. Na3 {[%clk 0:01:02]}  Nxa3 {[%clk 0:02:44]} 0-1


[Site "https://www.chess.com"]

[Event "Titled Tuesday Blitz August 08 Early 2023"]
[White "Degenbaev, Aziz"]
[Black "K2JW"]
[WhiteFideId "13802640"]
[WhiteElo "2528"]
[BlackElo "2373"]
[Result "1-0"]
[Round "4"]
[TimeControl "180+1"]
[Date "2023.08.08"]
[WhiteClock "0:00:43"]
[BlackClock "0:00:00"]
[Board "171"]

1. d4 {[%clk 0:03:00]}  d5 {[%clk 0:02:54]} 2. c4 {[%clk 0:02:58]}  e6 {[%clk 0:02:48]} 3. Nf3 {[%clk 0:02:57]}  Nf6 {[%clk 0:02:47]} 4. g3 {[%clk 0:02:57]}  Bb4+ {[%clk 0:02:37]} 5. Bd2 {[%clk 0:02:50]}  Be7 {[%clk 0:02:37]} 6. Bg2 {[%clk 0:02:43]}  O-O {[%clk 0:02:37]} 7. O-O {[%clk 0:02:44]}  c6 {[%clk 0:02:37]} 8. Na3 {[%clk 0:02:30]}  b6 {[%clk 0:02:23]} 9. Rc1 {[%clk 0:02:24]}  Bb7 {[%clk 0:02:21]} 10. cxd5 {[%clk 0:02:24]}  cxd5 {[%clk 0:02:19]} 11. Ne5 {[%clk 0:02:24]}  Nfd7 {[%clk 0:02:07]} 12. Nb5 {[%clk 0:02:22]}  Nxe5 {[%clk 0:02:07]} 13. dxe5 {[%clk 0:02:20]}  Nc6 {[%clk 0:02:06]} 14. Bc3 {[%clk 0:02:16]}  Qd7 {[%clk 0:01:55]} 15. Qa4 {[%clk 0:02:00]}  a6 {[%clk 0:01:49]} 16. Nd4 {[%clk 0:01:53]}  b5 {[%clk 0:01:49]} 17. Qb3 {[%clk 0:01:48]}  Nxe5 {[%clk 0:01:40]} 18. Nxb5 {[%clk 0:01:47]}  Nc4 {[%clk 0:01:34]} 19. Nd4 {[%clk 0:01:42]}  Rac8 {[%clk 0:01:17]} 20. Rfd1 {[%clk 0:01:39]}  Bf6 {[%clk 0:01:02]} 21. e4 {[%clk 0:01:26]}  dxe4 {[%clk 0:00:59]} 22. Nf5 {[%clk 0:01:25]}  Qc7 {[%clk 0:00:45]} 23. Nh6+ {[%clk 0:01:14]}  Kh8 {[%clk 0:00:29]} 24. Bxf6 {[%clk 0:01:08]}  gxf6 {[%clk 0:00:30]} 25. Ng4 {[%clk 0:01:04]}  Qe7 {[%clk 0:00:11]} 26. Rxc4 {[%clk 0:01:02]}  Bd5 {[%clk 0:00:10]} 27. Qb4 {[%clk 0:00:53]}  Qxb4 {[%clk 0:00:07]} 28. Rxb4 {[%clk 0:00:54]}  f5 {[%clk 0:00:08]} 29. Ne3 {[%clk 0:00:54]}  Bxa2 {[%clk 0:00:07]} 30. h4 {[%clk 0:00:52]}  Rb8 {[%clk 0:00:07]} 31. Rdd4 {[%clk 0:00:48]}  a5 {[%clk 0:00:06]} 32. Rxb8 {[%clk 0:00:47]}  Rxb8 {[%clk 0:00:07]} 33. Ra4 {[%clk 0:00:48]}  Rxb2 {[%clk 0:00:07]} 34. Rxa5 {[%clk 0:00:48]}  Kg7 {[%clk 0:00:07]} 35. Bf1 {[%clk 0:00:46]}  Kf6 {[%clk 0:00:07]} 36. Ra7 {[%clk 0:00:46]}  Rd2 {[%clk 0:00:04]} 37. Bc4 {[%clk 0:00:42]}  Bxc4 {[%clk 0:00:02]} 38. Nxc4 {[%clk 0:00:43]}  Rc2 {[%clk 0:00:02]} 39. Nd6 {[%clk 0:00:42]}  Ke5 {[%clk 0:00:01]} 40. Nxf7+ {[%clk 0:00:42]}  Kd4 {[%clk 0:00:02]} 41. Ng5 {[%clk 0:00:42]}  e5 {[%clk 0:00:01]} 42. Rd7+ {[%clk 0:00:42]}  Kc5 {[%clk 0:00:01]} 43. Rc7+ {[%clk 0:00:42]}  Kd6 {[%clk 0:00:00]} 44. Rxc2 {[%clk 0:00:43]} 1-0


[Site "https://www.chess.com"]

[Event "Titled Tuesday Blitz August 08 Early 2023"]
[White "Gu, Xiaobing"]
[Black "Geivondian, Arman"]
[WhiteFideId "8602611"]
[BlackFideId "24102032"]
[WhiteElo "2371"]
[BlackElo "2520"]
[Result "1-0"]
[Round "4"]
[TimeControl "180+1"]
[Date "2023.08.08"]
[WhiteClock "0:00:42"]
[BlackClock "0:01:12"]
[Board "172"]

1. e4 {[%clk 0:03:00]}  c6 {[%clk 0:02:58]} 2. d4 {[%clk 0:02:59]}  d5 {[%clk 0:02:58]} 3. exd5 {[%clk 0:02:56]}  cxd5 {[%clk 0:02:58]} 4. Nf3 {[%clk 0:02:56]}  Nf6 {[%clk 0:02:59]} 5. Bd3 {[%clk 0:02:55]}  Bg4 {[%clk 0:02:59]} 6. h3 {[%clk 0:02:49]}  Bxf3 {[%clk 0:02:56]} 7. Qxf3 {[%clk 0:02:48]}  Nc6 {[%clk 0:02:57]} 8. c3 {[%clk 0:02:47]}  Rc8 {[%clk 0:02:57]} 9. O-O {[%clk 0:02:45]}  e6 {[%clk 0:02:57]} 10. Re1 {[%clk 0:02:41]}  Be7 {[%clk 0:02:57]} 11. Qg3 {[%clk 0:02:39]}  g6 {[%clk 0:02:56]} 12. Bh6 {[%clk 0:02:37]}  Qa5 {[%clk 0:02:55]} 13. Nd2 {[%clk 0:02:29]}  Kd7 {[%clk 0:02:52]} 14. Nb3 {[%clk 0:02:11]}  Qc7 {[%clk 0:02:51]} 15. Qe3 {[%clk 0:01:50]}  b6 {[%clk 0:02:48]} 16. Bb5 {[%clk 0:01:45]}  Kd8 {[%clk 0:02:42]} 17. Bf4 {[%clk 0:01:36]}  Qb7 {[%clk 0:02:33]} 18. Qd3 {[%clk 0:01:36]}  Re8 {[%clk 0:02:18]} 19. Ba6 {[%clk 0:01:34]}  Qa8 {[%clk 0:02:18]} 20. Bxc8 {[%clk 0:01:34]}  Qxc8 {[%clk 0:02:19]} 21. a4 {[%clk 0:01:35]}  a5 {[%clk 0:02:17]} 22. Nd2 {[%clk 0:01:31]}  Nd7 {[%clk 0:02:10]} 23. Nf3 {[%clk 0:01:29]}  h5 {[%clk 0:02:06]} 24. Bg5 {[%clk 0:01:27]}  f6 {[%clk 0:02:04]} 25. Bd2 {[%clk 0:01:24]}  Nf8 {[%clk 0:02:02]} 26. Nh4 {[%clk 0:01:14]}  f5 {[%clk 0:01:59]} 27. Qg3 {[%clk 0:01:06]}  Bxh4 {[%clk 0:01:39]} 28. Qxh4+ {[%clk 0:01:06]}  Kd7 {[%clk 0:01:37]} 29. b4 {[%clk 0:01:05]}  Nd8 {[%clk 0:01:36]} 30. bxa5 {[%clk 0:01:03]}  bxa5 {[%clk 0:01:37]} 31. Rab1 {[%clk 0:01:04]}  Kc6 {[%clk 0:01:32]} 32. Qg3 {[%clk 0:00:59]}  Nf7 {[%clk 0:01:25]} 33. Rb5 {[%clk 0:00:57]}  Kd7 {[%clk 0:01:18]} 34. Reb1 {[%clk 0:00:55]}  Ke7 {[%clk 0:01:18]} 35. Rb7+ {[%clk 0:00:43]}  Kf6 {[%clk 0:01:17]} 36. Bg5+ {[%clk 0:00:42]}  Nxg5 {[%clk 0:01:12]} 37. Qe5# {[%clk 0:00:42]} 1-0


[Site "https://www.chess.com"]